fUST/lending_fUST_20251201
["ID","MTS","AMOUNT","RATE_DAILY","PERIOD"]
[395265996,1764575446498,-72.36826917,0.00010858,2]
[395265997,1764575446509,-4101.2795482,0.00010858,2]
[395267085,1764576556511,-158.79928279,9.104e-05,2]
[395267086,1764576556541,-14.31749378,9.104e-05,2]
[395267087,1764576556563,-150.0,9.872e-05,2]
[395267115,1764576632396,-237.0,0.00010641,2]
[395267117,1764576632406,-589.86494536,0.00010658,2]
[395267187,1764576633061,-1407.32265494,0.00010658,2]
[395267188,1764576633495,131.64250622,9.104e-05,2]
[395267189,1764576634911,17203.06869161,0.0001111,3]
[395267217,1764576640747,-150.0,9.013e-05,2]
[395267219,1764576640757,-253.79537649,9.104e-05,2]
[395267221,1764576640766,-727.84224195,0.00010658,2]
[395267222,1764576640778,-1158.13680705,0.00010658,2]
[395267223,1764576640824,-900.0,0.00010658,2]
[395267243,1764576645759,-71389.01158129,0.00010658,2]
[395267244,1764576645772,-4635.43008,0.00010658,2]
[395267245,1764576645784,-7728.459,0.00010658,2]
[395267246,1764576645964,-4884.21306736,0.00010658,2]
[395267250,1764576646604,-23420.6172312,0.00010658,2]
[395267251,1764576646616,-355.3,0.00010658,2]
[395267254,1764577203265,-321.05813841,0.00010036,2]
[395267255,1764577204466,232.0,0.00010036,2]
[395267256,1764577226012,321.05813841,0.00010036,2]
[395267257,1764577241051,-188.99166606,0.00010318,2]
[395267258,1764577519632,-343.05919018,9.104e-05,2]
[395267259,1764577654234,-2703.11236021,0.00010336,2]
[395267261,1764577746229,-300.0,0.00010557,2]
[395267262,1764577746253,-25.41496088,0.00010558,2]
[395267263,1764577762102,-456.13750976,0.00010558,2]
[395267264,1764577769088,-1707.1894,0.00010558,2]
[395267265,1764577776147,2000.0,0.000215,120]
[395267306,1764577831671,-195.85721017,0.00010478,2]
[395267308,1764577831681,-721.25960135,0.00010557,2]
[395267310,1764577831692,-478.74039865,0.00010557,2]
[395267311,1764577831701,-300.0,0.00010557,2]
[395267313,1764577831711,-300.0,0.00010557,2]
[395267315,1764577831720,-237.0,0.00010558,2]
[395267316,1764577831730,-515591.21154745,0.00010558,2]
[395267318,1764577840038,-90560.0,0.00010558,2]
[395267335,1764577845802,-8273.60000068,0.00010558,2]
[395267336,1764577976404,217.0,0.0001,2]
[395272128,1764578317655,6892.1799858,9.636e-05,2]
[395273737,1764578399337,274.52966988,9.104e-05,2]
[395276316,1764579031741,-1819.86175815,0.00010452,2]
[395276317,1764579031753,-557.26,0.00010452,2]
[395276318,1764579031828,-465.60265351,0.00010452,2]
[395276319,1764579031839,-1653.43066253,0.00010452,2]
[395276320,1764579031849,-151.21056523,0.00010452,2]
[395276321,1764579031858,-231.28369723,0.00010452,2]
[395276322,1764579031867,-300.0,0.00010457,2]
[395276324,1764579031878,-300.0,0.00010457,2]
[395276326,1764579031888,-300.0,0.00010457,2]
[395276327,1764579031898,-236.0,0.00010457,2]
[395276328,1764579031908,-1200.0,0.00010457,2]
[395276329,1764579031918,-185.21183273,0.00010457,2]
[395276330,1764579031927,-4699.19205157,0.00010458,2]
[395276376,1764579038305,-300.0,0.00010458,2]
[395276377,1764579038317,-462.86205738,0.00010458,2]
[395276378,1764579038338,-488.57536421,0.00010458,2]
[395276619,1764579042890,-151.0,0.00010452,2]
[395276621,1764579042901,-151.0,0.00010452,2]
[395276622,1764579042911,-151.0,0.00010452,2]
[395276624,1764579042921,-143.16442264,0.00010452,2]
[395276627,1764579042933,-7.83557736,0.00010452,2]
[395276629,1764579042942,-151.0,0.00010452,2]
[395276631,1764579042951,-151.0,0.00010452,2]
[395276633,1764579042961,-7702.22698264,0.00010458,2]
[395276635,1764579042972,-11468.95755193,0.00010458,2]
[395276644,1764579043048,-151.0,0.00010452,2]
[395276646,1764579043058,-90613.09415918,0.00010458,2]
[395276648,1764579043068,-32613.82357182,0.00010458,2]
[395276931,1764579045951,-151.0,0.00010452,2]
[395276933,1764579045960,-151.0,0.00010452,2]
[395276935,1764579045969,-151.0,0.00010452,2]
[395276937,1764579045977,-151.0,0.00010452,2]
[395276938,1764579045986,-611.86785834,0.00010458,2]
[395276941,1764579045998,-2281.28905335,0.00010458,2]
[395277054,1764579102947,182.537,0.00010249,2]
[395277055,1764579103057,184.56949994,0.00010249,2]
[395277067,1764579561910,9632.90350006,0.0001,2]
[395277068,1764579561932,1367.09649994,0.0001,2]
[395277069,1764579598542,219.68960985,9.104e-05,2]
[395277072,1764579676070,178.6127034,0.000215,120]
[395277073,1764579775312,1327.42779304,0.00010306,2]
[395277074,1764579799349,211.47566267,0.000215,120]
[395277075,1764579854529,237.57860172,0.000215,120]
[395277078,1764580117111,1061.94223444,0.00010307,2]
[395277079,1764580175466,1121.0,0.00010348,2]
[395277080,1764580196076,152.70024551,9.104e-05,2]
[395277093,1764580231952,-151.0,0.00010352,2]
[395277094,1764580231962,-151.0,0.00010352,2]
[395277095,1764580231972,-151.0,0.00010352,2]
[395277096,1764580231982,-151.0,0.00010352,2]
[395277097,1764580231993,-151.0,0.00010352,2]
[395277098,1764580232002,-151.0,0.00010352,2]
[395277099,1764580232012,-154.59610482,0.00010352,2]
[395277101,1764580232021,-104.85283098,0.00010352,2]
[395277102,1764580232033,-1116.87,0.00010352,2]
[395277104,1764580232045,-3274.43224321,0.00010352,2]
[395277106,1764580232054,-231.28369723,0.00010352,2]
[395277108,1764580232065,-300.0,0.00010357,2]
[395277110,1764580232075,-1200.0,0.00010357,2]
[395277112,1764580232085,-235.0,0.00010357,2]
[395277114,1764580232095,-184.70814739,0.00010358,2]
[395277116,1764580232105,-22998.96580956,0.00010358,2]
[395277217,1764580238273,-568.04179401,0.00010358,2]
[395277227,1764580238366,-1336.524237,0.00010358,2]
[395277232,1764580238414,-360.82507419,0.00010358,2]
[395277235,1764580238426,-424.50976335,0.00010358,2]
[395277360,1764580240200,-83182.8147822,0.00010358,2]
[395277367,1764580240254,-4956.71866674,0.00010358,2]
[395277696,1764580243198,-56564.44868819,0.00010358,2]
[395278001,1764580246170,-1328.55203331,0.00010358,2]
[395279399,1764580263429,231.40815222,0.00010255,2]
[395279400,1764580457390,849.55378752,0.00010282,2]
[395279401,1764580646584,3669.19167748,0.00010258,2]
[395279402,1764580646609,10000.01,0.00010258,2]
[395279403,1764580646632,10000.01,0.00010258,2]
[395279404,1764580646656,10000.01,0.00010258,2]
[395279405,1764580646678,10000.01,0.00010258,2]
[395279406,1764580646702,10000.01,0.00010258,2]
[395279407,1764580646726,10000.01,0.00010258,2]
[395279408,1764580646748,10000.01,0.00010258,2]
[395279409,1764580647036,10000.01,0.00010258,2]
[395279410,1764580647061,10000.01,0.00010258,2]
[395279412,1764580682575,300.0,0.00010257,2]
[395279413,1764580714178,500.0,0.00010257,2]
[395279414,1764580714210,250.20933976,0.00010257,2]
[395279415,1764580714253,500.0,0.00010257,2]
[395279416,1764580714308,500.0,0.00010257,2]
[395279417,1764580714342,219.35361413,0.00010257,2]
[395279418,1764580714388,500.0,0.00010257,2]
[395279419,1764580714421,500.0,0.00010257,2]
[395279420,1764580714455,550.92961781,0.00010257,2]
[395279421,1764580742530,300.0,0.00010257,2]
[395279422,1764580797756,3398.21515008,0.00010252,2]
[395279423,1764580799229,206.17972343,9.104e-05,2]
[395279424,1764580802567,300.0,0.00010257,2]
[395279425,1764580802643,1200.0,0.00010257,2]
[395279426,1764580804255,234.0,0.00010258,2]
[395279427,1764580862422,300.0,0.00010257,2]
[395279428,1764580903006,181.661,0.00010053,2]
[395279429,1764580922703,300.0,0.00010257,2]
[395279430,1764580982377,300.0,0.00010257,2]
[395279431,1764581050313,300.0,0.00010257,2]
[395279435,1764581102251,300.0,0.00010257,2]
[395279436,1764581102502,665.0,0.00010257,2]
[395279437,1764581149114,-154.21411193,0.00010258,2]
[395279438,1764581222325,300.0,0.00010257,2]
[395279439,1764581233095,-271.8,0.00010258,2]
[395279442,1764581283034,300.0,0.00010257,2]
[395279444,1764581342370,300.0,0.00010257,2]
[395279445,1764581346093,-2986.48582282,0.00010258,2]
[395279446,1764581360132,-1203.146,0.00010258,2]
[395279447,1764581371087,-1515.97389794,0.00010258,2]
[395279448,1764581402301,300.0,0.00010257,2]
[395279449,1764581404541,234.0,0.00010258,2]
[395279590,1764581438273,-532.36073526,0.00010258,2]
[395279592,1764581438287,-214972.61956334,0.00010258,2]
[395279599,1764581438418,-471692.28472696,0.00010258,2]
[395279600,1764581438431,-45559.22602047,0.00010258,2]
[395279625,1764581440307,-57442.6074438,0.00010258,2]
[395279627,1764581440316,-231.28369723,0.00010264,2]
[395279629,1764581440325,-4496.15507419,0.00010264,2]
[395279631,1764581440334,-184.01398444,0.00010282,2]
[395279633,1764581440343,-4662.51281194,0.00010319,2]
[395279635,1764581440353,-333.0,0.00010358,2]
[395279637,1764581440362,-333.0,0.00010358,2]
[395279639,1764581440371,-373.77960011,0.00010358,2]
[395279641,1764581440381,-333.0,0.00010358,2]
[395279643,1764581440393,-375.57211697,0.00010358,2]
[395279645,1764581440403,-333.0,0.00010358,2]
[395279647,1764581440412,-176.97907033,0.00010358,2]
[395279649,1764581440421,-162.19370157,0.00010358,2]
[395279651,1764581440432,-13898.24474316,0.00010358,2]
[395279823,1764581443291,-24017.28645131,0.00010358,2]
[395279824,1764581443302,-1874.46960627,0.00010358,2]
[395279850,1764581446679,-2732.30630634,0.00010358,2]
[395279851,1764581446697,-7477.69289292,0.00010358,2]
[395279852,1764581446706,-4835.02578598,0.00010374,2]
[395279853,1764581446715,-5013.92174006,0.00010429,2]
[395279854,1764581446724,-5199.43684444,0.00010484,2]
[395279855,1764581446734,-5391.81600769,0.00010539,2]
[395279856,1764581446743,-5591.31319997,0.00010594,2]
[395279857,1764581446751,-5798.19178837,0.00010649,2]
[395279858,1764581446761,-6012.72488454,0.00010704,2]
[395279859,1764581446770,-6235.19570527,0.00010759,2]
[395279860,1764581446779,-237.865298,0.00010792,2]
[395279861,1764581446789,-215.4578,0.00010792,2]
[395279862,1764581446799,-151.0,0.00010792,2]
[395279863,1764581446808,-151.0,0.00010792,2]
[395279864,1764581446817,-151.0,0.00010792,2]
[395279865,1764581446828,-151.0,0.00010792,2]
[395279866,1764581446846,-151.0,0.00010792,2]
[395279867,1764581446855,-151.0,0.00010792,2]
[395279868,1764581446864,-151.0,0.00010792,2]
[395279869,1764581446875,-151.0,0.00010792,2]
[395279870,1764581446890,-151.0,0.00010792,2]
[395279871,1764581446899,-151.0,0.00010792,2]
[395279872,1764581446909,-151.0,0.00010792,2]
[395279873,1764581446918,-151.0,0.00010792,2]
[395279874,1764581446927,-252.275663,0.00010792,2]
[395279875,1764581446937,-151.0,0.00010792,2]
[395279876,1764581446947,-396.9531972,0.000108,2]
[395279877,1764581446956,-396.2687812,0.000108,2]
[395279878,1764581446966,-606.8007832,0.000108,2]
[395279879,1764581446975,-153.0,0.000108,2]
[395279880,1764581446985,-165.0599978,0.000108,2]
[395279881,1764581446994,-596.2938552,0.000108,2]
[395279882,1764581447003,-339.3474309,0.000108,2]
[395279883,1764581447012,-165.0599978,0.000108,2]
[395279884,1764581447022,-153.0,0.000108,2]
[395279885,1764581447031,-596.2938552,0.000108,2]
[395279886,1764581447039,-159.351688,0.000108,2]
[395279887,1764581447049,-153.0,0.000108,2]
[395279888,1764581447069,-596.2938552,0.000108,2]
[395279889,1764581447080,-596.2938552,0.000108,2]
[395279890,1764581447091,-596.2938552,0.000108,2]
[395279891,1764581447102,-500.0,0.000108,2]
[395279892,1764581447112,-153.0,0.000108,2]
[395279893,1764581447123,-723.5670431,0.000108,2]
[395279894,1764581447133,-151.0,0.000108,2]
[395279895,1764581447143,-151.0,0.000108,2]
[395279896,1764581447153,-301.7915627,0.000108,2]
[395279897,1764581447163,-596.2938552,0.000108,2]
[395279898,1764581447172,-225.1959301,0.000108,2]
[395279899,1764581447182,-260.01367098,0.000108,2]
[395279900,1764581447195,-336.28018422,0.000108,2]
[395279901,1764581447204,-151.0,0.000108,2]
[395279902,1764581447215,-1346.0,0.000108,2]
[395279903,1764581447226,-333.671242,0.000108,2]
[395279904,1764581447238,-333.671242,0.000108,2]
[395279905,1764581447247,-44.77733198,0.000108,2]
[395279906,1764581447271,-288.89391002,0.000108,2]
[395279907,1764581447281,-151.0,0.000108,2]
[395279908,1764581447291,-333.671242,0.000108,2]
[395279909,1764581447303,-151.0,0.000108,2]
[395279910,1764581447312,-438.0,0.000108,2]
[395279911,1764581447322,-152.661745,0.000108,2]
[395279912,1764581447332,-151.0,0.000108,2]
[395279913,1764581447341,-365.597191,0.000108,2]
[395279914,1764581447351,-365.597191,0.000108,2]
[395279915,1764581447362,-365.597191,0.000108,2]
[395279916,1764581447371,-151.0,0.000108,2]
[395279917,1764581447382,-365.597191,0.000108,2]
[395279918,1764581447398,-151.0,0.000108,2]
[395279919,1764581447409,-151.0,0.000108,2]
[395279920,1764581447419,-151.0,0.000108,2]
[395279921,1764581447431,-239.84119403,0.00010812,2]
[395279922,1764581447441,-6465.89794637,0.00010814,2]
[395279923,1764581447451,-151.0,0.00010846,2]
[395279924,1764581447465,-151.0,0.00010846,2]
[395279925,1764581447474,-151.0,0.00010846,2]
[395279926,1764581447484,-151.283342,0.00010846,2]
[395279927,1764581447494,-151.0,0.00010846,2]
[395279928,1764581447503,-151.0,0.00010846,2]
[395279929,1764581447512,-298.34792,0.00010846,2]
[395279930,1764581447522,-151.0,0.00010846,2]
[395279931,1764581447531,-151.0,0.00010846,2]
[395279932,1764581447541,-157.618302,0.00010846,2]
[395279933,1764581447551,-2154.0,0.00010846,2]
[395279934,1764581447561,-633.632,0.00010846,2]
[395279935,1764581447569,-414.0,0.00010846,2]
[395279936,1764581447578,-500.0,0.00010847,2]
[395279937,1764581447588,-226.48263279,0.00010847,2]
[395279938,1764581447597,-151.0,0.00010847,2]
[395279939,1764581447606,-151.0,0.00010847,2]
[395279940,1764581447616,-151.0,0.00010847,2]
[395279941,1764581447625,-151.0,0.00010847,2]
[395279942,1764581447634,-285.44289036,0.00010847,2]
[395279943,1764581447645,-5905.51022908,0.00010869,2]
[395279944,1764581447655,-396.9531972,0.000109,2]
[395279945,1764581447664,-151.0,0.00010937,2]
[395279946,1764581447674,-151.0,0.00010937,2]
[395279947,1764581447683,-1346.0,0.00010937,2]
[395279948,1764581447692,-271.16851832,0.00010937,2]
[395279949,1764581447701,-438.0,0.00010937,2]
[395279950,1764581447710,-152.5135841,0.00010937,2]
[395279951,1764581447721,-151.0,0.00010937,2]
[395279952,1764581447732,-333.0,0.00010942,2]
[395279953,1764581447742,-333.0,0.00010942,2]
[395279954,1764581447751,-333.0,0.00010942,2]
[395279955,1764581447764,-333.0,0.00010942,2]
[395279956,1764581447773,-333.0,0.00010942,2]
[395279957,1764581447783,-333.0,0.00010942,2]
[395279958,1764581447792,-478.65619189,0.00010942,2]
[395279959,1764581447801,-162.04008448,0.00010958,2]
[395279960,1764581447810,-487.66986848,0.00010958,2]
[395279961,1764581448073,-12.33013152,0.00010958,2]
[395279962,1764581448084,-569.1698685,0.00010958,2]
[395279963,1764581456428,509.91914637,0.00010257,2]
[395279964,1764581461513,343.17196387,0.00010257,2]
[395279965,1764581461992,500.0,0.00010257,2]
[395279966,1764581462027,500.0,0.00010257,2]
[395279967,1764581462066,500.0,0.00010257,2]
[395279968,1764581462110,500.0,0.00010257,2]
[395279969,1764581462147,500.0,0.00010257,2]
[395279970,1764581462181,500.0,0.00010257,2]
[395279971,1764581462213,500.0,0.00010257,2]
[395279972,1764581462523,255.11251244,0.00010257,2]
[395279973,1764581462554,500.0,0.00010257,2]
[395279974,1764581462583,500.0,0.00010257,2]
[395279975,1764581462612,500.0,0.00010257,2]
[395279976,1764581462652,500.0,0.00010257,2]
[395279977,1764581462693,500.0,0.00010257,2]
[395279978,1764581462771,500.0,0.00010257,2]
[395279979,1764581462801,500.0,0.00010257,2]
[395279980,1764581462847,500.0,0.00010257,2]
[395279981,1764581462887,500.0,0.00010257,2]
[395279982,1764581462949,500.0,0.00010257,2]
[395279983,1764581462986,391.80637732,0.00010257,2]
[395279984,1764581463009,108.19362268,0.00010257,2]
[395279985,1764581469928,453.78741993,0.00010257,2]
[395279986,1764581493325,500.0,0.00010257,2]
[395279987,1764581493689,500.0,0.00010257,2]
[395279988,1764581494035,500.0,0.00010257,2]
[395279989,1764581494367,500.0,0.00010257,2]
[395279990,1764581494611,8000.01,0.00010158,2]
[395279991,1764581494637,10000.01,0.00010158,2]
[395279992,1764581494663,10000.01,0.00010158,2]
[395279993,1764581494689,10000.01,0.00010158,2]
[395279994,1764581494715,10000.01,0.00010158,2]
[395279995,1764581494741,10000.01,0.00010158,2]
[395279996,1764581494766,10000.01,0.00010158,2]
[395279997,1764581494792,10000.01,0.00010158,2]
[395279998,1764581494817,10000.01,0.00010158,2]
[395279999,1764581494842,10000.01,0.00010158,2]
[395280000,1764581522681,300.0,0.00010157,2]
[395280011,1764581567533,500.0,0.00010157,2]
[395280012,1764581567603,500.0,0.00010157,2]
[395280013,1764581567646,500.0,0.00010157,2]
[395280014,1764581567701,500.0,0.00010157,2]
[395280015,1764581567737,500.0,0.00010157,2]
[395280016,1764581567778,155.60421303,0.00010157,2]
[395280017,1764581567818,500.0,0.00010157,2]
[395280018,1764581582456,300.0,0.00010157,2]
[395280020,1764581642557,300.0,0.00010157,2]
[395280021,1764581702699,300.0,0.00010157,2]
[395280023,1764581762405,300.0,0.00010157,2]
[395280024,1764581766251,2906.65996923,0.00010108,2]
[395280025,1764581822723,300.0,0.00010157,2]
[395280026,1764581945321,800.0,0.00010146,2]
[395280027,1764581945384,800.0,0.00010098,2]
[395280028,1764581945430,800.0,0.00010119,2]
[395280029,1764581945484,800.0,0.00010055,2]
[395280030,1764581945527,800.0,0.00010107,2]
[395280031,1764581945593,800.0,0.00010007,2]
[395280032,1764581945639,793.35003077,0.00010103,2]
[395280033,1764581945668,6.64996923,0.00010103,2]
[395280034,1764581945700,800.0,0.00010146,2]
[395280035,1764581945755,800.0,0.0001,2]
[395280036,1764581945810,800.0,0.00010126,2]
[395280040,1764581998556,274.95210036,9.104e-05,2]
[395280041,1764582004565,233.0,0.00010158,2]
[395280044,1764582103062,181.004,9.955e-05,2]
[395280045,1764582351115,-425.94516997,0.00010158,2]
[395280046,1764582425387,800.0,0.00010037,2]
[395280047,1764582425418,800.0,0.00010016,2]
[395280048,1764582425454,800.0,0.00010116,2]
[395280049,1764582425511,800.0,0.00010144,2]
[395280050,1764582425555,800.0,0.00010148,2]
[395280051,1764582425585,800.0,9.898e-05,2]
[395280052,1764582425614,800.0,0.00010018,2]
[395280053,1764582425651,800.0,0.00010071,2]
[395280054,1764582425690,800.0,9.954e-05,2]
[395280055,1764582425723,800.0,0.00010072,2]
[395280056,1764582425754,800.0,0.00010084,2]
[395280057,1764582425794,511.05389964,0.00010074,2]
[395280058,1764582425818,288.94610036,0.00010074,2]
[395280059,1764582425854,800.0,0.00010011,2]
[395280060,1764582425882,800.0,9.963e-05,2]
[395280061,1764582425949,800.0,0.00010074,2]
[395280062,1764582426002,800.0,0.00010144,2]
[395280063,1764582433080,-326.69489281,0.00010158,2]
[395280064,1764582454102,-1567.827,0.00010158,2]
[395280065,1764582500246,6511.06389964,0.00010058,2]
[395280066,1764582500268,10000.01,0.00010058,2]
[395280067,1764582500290,10000.01,0.00010058,2]
[395280068,1764582500311,10000.01,0.00010058,2]
[395280069,1764582500332,10000.01,0.00010058,2]
[395280070,1764582500354,10000.01,0.00010058,2]
[395280071,1764582500376,10000.01,0.00010058,2]
[395280072,1764582500398,10000.01,0.00010058,2]
[395280073,1764582500421,10000.01,0.00010058,2]
[395280074,1764582512844,350.62269034,0.00010057,2]
[395280075,1764582552084,-1774.1038,0.00010058,2]
[395280076,1764582552115,-458.2186,0.00010058,2]
[395280077,1764582558104,-1413.4638,0.00010058,2]
[395280078,1764582567156,-147256.55528271,0.00010058,2]
[395280079,1764582573274,-1520.6268,0.00010058,2]
[395280080,1764582604641,233.0,0.00010058,2]
[395280124,1764582632451,-1311.51911176,0.00010058,2]
[395280126,1764582632460,-183.33370476,0.00010164,2]
[395280128,1764582632470,-127.48221305,0.00010287,2]
[395280133,1764582632505,-131.76778695,0.00010287,2]
[395280135,1764582632515,-231.28369723,0.00010287,2]
[395280137,1764582632525,-263.1584114,0.00010528,2]
[395280139,1764582632535,-389.72990362,0.00010766,2]
[395280141,1764582632544,-239.84119403,0.00010835,2]
[395280143,1764582632552,-631.0,0.00010846,2]
[395280145,1764582632562,-2154.0,0.00010846,2]
[395280146,1764582632572,-1358.0,0.00010846,2]
[395280149,1764582632583,-4811.9598153,0.00010863,2]
[395280151,1764582632593,-500.0,0.00010958,2]
[395280153,1764582632603,-151.0,0.00010958,2]
[395280155,1764582632612,-151.0,0.00010958,2]
[395280157,1764582632623,-151.0,0.00010958,2]
[395280159,1764582632633,-156.2425,0.00010958,2]
[395280161,1764582632642,-151.0,0.00010958,2]
[395280163,1764582632652,-151.0,0.00010958,2]
[395280165,1764582632662,-151.0,0.00010958,2]
[395280167,1764582632672,-151.0,0.00010958,2]
[395280169,1764582632682,-151.0,0.00010958,2]
[395280171,1764582632692,-151.0,0.00010958,2]
[395280173,1764582632701,-212.33009,0.00010958,2]
[395280175,1764582632711,-500.0,0.00010958,2]
[395280177,1764582632721,-151.0,0.00010958,2]
[395280179,1764582632732,-623.0,0.00010958,2]
[395280181,1764582632742,-151.0,0.00010958,2]
[395280183,1764582632753,-151.0,0.00010958,2]
[395280184,1764582632766,-218.237723,0.00010958,2]
[395280187,1764582632778,-500.0,0.00010958,2]
[395280189,1764582632788,-510.77379335,0.00010958,2]
[395280191,1764582632799,-500.0,0.00010958,2]
[395280193,1764582632810,-611.99,0.00010958,2]
[395280194,1764582632820,-511.34,0.00010958,2]
[395280196,1764582632831,-500.0,0.00010958,2]
[395280198,1764582632841,-568.47,0.00010958,2]
[395280200,1764582632851,-151.0,0.00010958,2]
[395280202,1764582632860,-151.0,0.00010958,2]
[395280204,1764582632869,-500.0,0.00010958,2]
[395280206,1764582632879,-500.0,0.00010958,2]
[395280208,1764582632889,-500.0,0.00010958,2]
[395280210,1764582632898,-500.0,0.00010958,2]
[395280212,1764582632907,-500.0,0.00010958,2]
[395280214,1764582632917,-1393.56,0.00010958,2]
[395280216,1764582632927,-500.0,0.00010958,2]
[395280218,1764582632936,-500.0,0.00010958,2]
[395280220,1764582632946,-500.0,0.00010958,2]
[395280222,1764582632956,-500.0,0.00010958,2]
[395280224,1764582632966,-953.09,0.00010958,2]
[395280226,1764582632976,-500.0,0.00010958,2]
[395280228,1764582632985,-500.0,0.00010958,2]
[395280230,1764582632994,-500.0,0.00010958,2]
[395280232,1764582633004,-500.0,0.00010958,2]
[395280234,1764582633013,-500.0,0.00010958,2]
[395280236,1764582633023,-500.0,0.00010958,2]
[395280238,1764582633032,-500.0,0.00010958,2]
[395280240,1764582633041,-502.90780442,0.00010958,2]
[395280242,1764582633050,-500.0,0.00010958,2]
[395280244,1764582633060,-500.0,0.00010958,2]
[395280246,1764582633069,-500.0,0.00010958,2]
[395280248,1764582633078,-500.0,0.00010958,2]
[395280250,1764582633088,-500.0,0.00010958,2]
[395280252,1764582633097,-500.0,0.00010958,2]
[395280254,1764582633107,-310.75941573,0.00010958,2]
[395280256,1764582633116,-151.0,0.00010958,2]
[395280258,1764582633127,-500.21547563,0.00010958,2]
[395280260,1764582633136,-151.0,0.00010958,2]
[395280262,1764582633145,-502.56377818,0.00010958,2]
[395280263,1764582633155,-500.0,0.00010958,2]
[395280264,1764582633164,-500.0,0.00010958,2]
[395280265,1764582633173,-502.94646337,0.00010958,2]
[395280266,1764582633183,-500.0,0.00010958,2]
[395280267,1764582633192,-500.0,0.00010958,2]
[395280268,1764582633201,-500.0,0.00010958,2]
[395280269,1764582633211,-500.5180004,0.00010958,2]
[395280270,1764582633220,-500.0,0.00010958,2]
[395280271,1764582633229,-500.0,0.00010958,2]
[395280272,1764582633238,-634.82,0.00010958,2]
[395280273,1764582633248,-500.0,0.00010958,2]
[395280274,1764582633258,-500.0,0.00010958,2]
[395280275,1764582633267,-500.0,0.00010958,2]
[395280276,1764582633277,-500.0,0.00010958,2]
[395280277,1764582633287,-151.0,0.00010958,2]
[395280278,1764582633296,-151.0,0.00010958,2]
[395280279,1764582633306,-151.0,0.00010958,2]
[395280280,1764582633315,-151.0,0.00010958,2]
[395280281,1764582633326,-151.0,0.00010958,2]
[395280282,1764582633335,-151.0,0.00010958,2]
[395280283,1764582633344,-169.35679058,0.00010958,2]
[395280284,1764582633355,-500.0,0.00010958,2]
[395280285,1764582633364,-500.0,0.00010958,2]
[395280286,1764582633373,-500.0,0.00010958,2]
[395280287,1764582633384,-500.0,0.00010958,2]
[395280288,1764582633393,-500.0,0.00010958,2]
[395280289,1764582633402,-500.0,0.00010958,2]
[395280290,1764582633412,-272.752452,0.00010958,2]
[395280291,1764582633421,-500.0,0.00010958,2]
[395280292,1764582633431,-500.0,0.00010958,2]
[395280293,1764582633441,-500.0,0.00010958,2]
[395280294,1764582633450,-500.0,0.00010958,2]
[395280295,1764582633460,-500.0,0.00010958,2]
[395280296,1764582633470,-500.0,0.00010958,2]
[395280297,1764582633479,-500.0,0.00010958,2]
[395280298,1764582633489,-1278.34,0.00010958,2]
[395280300,1764582633498,-628.66,0.00010958,2]
[395280302,1764582633507,-506.54817904,0.00010958,2]
[395280304,1764582633516,-500.0,0.00010958,2]